bitfinex/quotes_BTCUSD_20251016
["timestamp","ask_amount","ask_price","bid_price","bid_amount"]
[1760597397014,0.01928332,111630.0,111620.0,1.14515165]
[1760597397442,0.01928332,111630.0,111620.0,1.03263165]
[1760597397647,0.01928332,111630.0,111620.0,1.12231373]
[1760597397925,0.01991683,111640.0,111630.0,0.1791633]
[1760597398146,0.01991683,111640.0,111630.0,0.76325451]
[1760597398147,0.24906408,111640.0,111630.0,0.76325451]
[1760597398307,0.22978076,111640.0,111630.0,0.76325451]
[1760597398831,0.22978076,111640.0,111630.0,0.65073451]
[1760597399056,0.22978076,111640.0,111630.0,0.83029895]
[1760597399495,0.22978076,111640.0,111630.0,0.44841786]
[1760597399655,0.05063351,111640.0,111630.0,0.83029895]
[1760597400645,0.05063351,111640.0,111630.0,0.71777895]
[1760597401075,0.00063351,111640.0,111630.0,0.44841786]
[1760597401275,0.00063351,111640.0,111630.0,0.71777895]
[1760597401648,0.00063351,111640.0,111630.0,0.83029895]
[1760597402264,0.00063351,111640.0,111630.0,1.17029895]
[1760597402893,0.00063351,111640.0,111630.0,1.17129895]
[1760597403327,0.00063351,111640.0,111630.0,1.05877895]
[1760597403860,0.00063351,111640.0,111630.0,1.17229895]
[1760597404269,0.00063351,111640.0,111630.0,1.05977895]
[1760597404445,0.00063351,111640.0,111630.0,1.17229895]
[1760597405189,0.00063351,111640.0,111630.0,1.05977895]
[1760597405399,0.00063351,111640.0,111630.0,1.17229895]
[1760597405848,0.00063351,111640.0,111630.0,1.17225895]
[1760597406269,0.00063351,111640.0,111630.0,1.05977895]
[1760597406445,0.00063351,111640.0,111630.0,1.55414004]
[1760597406694,0.00063351,111640.0,111630.0,1.05977895]
[1760597406930,0.00063351,111640.0,111630.0,1.59032232]
[1760597407145,0.00063351,111640.0,111630.0,1.47784232]
[1760597407354,0.00063351,111640.0,111630.0,1.59032232]
[1760597408009,0.00063351,111640.0,111630.0,1.47784232]
[1760597408236,0.00063351,111640.0,111630.0,1.59032232]
[1760597408655,0.00063351,111640.0,111630.0,1.47784232]
[1760597409072,0.00063351,111640.0,111630.0,1.59032232]
[1760597410337,0.00063351,111640.0,111630.0,1.47784232]
[1760597410779,0.00063351,111640.0,111630.0,1.59032232]
[1760597411199,0.00063351,111640.0,111630.0,1.47784232]
[1760597411454,0.00063351,111640.0,111630.0,1.59032232]
[1760597412199,0.00063351,111640.0,111630.0,1.97220341]
[1760597412437,0.00063351,111640.0,111630.0,1.47784232]
[1760597412685,0.00063351,111640.0,111630.0,1.59032232]
[1760597412926,0.00063351,111640.0,111630.0,1.97220341]
[1760597413150,0.01,111680.0,111670.0,0.56098022]
[1760597413395,0.01,111680.0,111670.0,0.84283241]
[1760597413396,0.10049751,111680.0,111670.0,0.84283241]
[1760597413844,0.10049751,111680.0,111670.0,0.73035241]
[1760597414070,0.10049751,111680.0,111670.0,0.84283241]
[1760597415481,0.10049751,111680.0,111670.0,0.73035241]
[1760597415946,0.01049751,111680.0,111670.0,0.73035241]
[1760597416183,0.01049751,111680.0,111670.0,0.84283241]
[1760597416427,0.01049751,111680.0,111670.0,1.61698069]
[1760597416653,0.01049751,111680.0,111670.0,1.50450069]
[1760597416881,0.01049751,111680.0,111670.0,0.70455623]
[1760597417131,0.01049751,111680.0,111670.0,1.61698069]
[1760597417382,0.01049751,111680.0,111670.0,0.86371602]
[1760597417600,0.01049751,111680.0,111670.0,1.6274782]
[1760597417829,0.01049751,111680.0,111670.0,1.5159982]
[1760597418046,0.01049751,111680.0,111670.0,1.5149982]
[1760597418262,0.01049751,111680.0,111670.0,1.6274782]
[1760597418443,0.01049751,111680.0,111670.0,1.6284782]
[1760597418688,0.01049751,111680.0,111670.0,1.5159982]
[1760597418898,0.01049751,111680.0,111670.0,1.6284782]
[1760597419128,0.01283164,111680.0,111670.0,1.6284782]
[1760597419337,0.01283164,111680.0,111670.0,1.6294782]
[1760597419547,0.01283164,111680.0,111670.0,1.6284782]
[1760597419793,0.01283164,111680.0,111670.0,2.00935929]
[1760597420013,0.01283164,111680.0,111670.0,1.89787929]
[1760597420227,0.01283164,111680.0,111670.0,1.89887929]
[1760597420453,1e-08,111680.0,111670.0,1.89887929]
[1760597420636,1e-08,111680.0,111670.0,1.89687929]
[1760597420881,1e-08,111680.0,111670.0,2.01031929]
[1760597421094,1e-08,111680.0,111670.0,1.89887929]
[1760597421307,1e-08,111680.0,111670.0,2.01031929]
[1760597421524,1e-08,111690.0,111680.0,0.55526537]
[1760597421738,1e-08,111690.0,111680.0,1.8576432]
[1760597421739,4.974e-05,111690.0,111680.0,1.8576432]
[1760597422376,4.974e-05,111690.0,111680.0,2.23952429]
[1760597422596,4.974e-05,111690.0,111680.0,2.35196429]
[1760597422813,1e-08,111700.0,111690.0,1.70089261]
[1760597423027,1e-08,111700.0,111690.0,1.79058273]
[1760597423243,1e-08,111700.0,111690.0,1.9827048]
[1760597423470,1e-08,111700.0,111690.0,1.8702648]
[1760597423680,1e-08,111700.0,111690.0,1.9827048]
[1760597423863,1e-08,111700.0,111690.0,1.8702648]
[1760597424118,1e-08,111700.0,111690.0,1.9827048]
[1760597424312,1e-08,111700.0,111690.0,1.9837048]
[1760597424501,1e-08,111700.0,111690.0,1.9827048]
[1760597425610,1e-08,111710.0,111700.0,0.5552333]
[1760597425839,0.0002,111720.0,111710.0,0.55521728]
[1760597425840,1e-08,111720.0,111710.0,0.55521728]
[1760597426082,0.04941416,111740.0,111730.0,0.17900295]
[1760597426302,0.04946389,111740.0,111730.0,1.14489525]
[1760597426521,0.04946389,111740.0,111730.0,1.03245525]
[1760597426780,0.04946389,111740.0,111730.0,1.60649841]
[1760597427028,0.07415989,111780.0,111760.0,0.21513718]
[1760597427262,0.05504972,111780.0,111770.0,0.34549505]
[1760597427511,0.05504972,111780.0,111770.0,1.43136335]
[1760597428000,0.05504972,111780.0,111770.0,1.5479414]
[1760597428216,0.05504972,111780.0,111770.0,1.92982249]
[1760597428448,0.0018,111790.0,111780.0,0.51892288]
[1760597428679,0.005,111810.0,111780.0,1.02379262]
[1760597428929,0.00549711,111810.0,111800.0,1.36071642]
[1760597429162,0.00549711,111810.0,111800.0,0.21507315]
[1760597429376,8e-05,111830.0,111800.0,0.21507315]
[1760597429377,0.025,111870.0,111860.0,0.17879492]
[1760597429617,0.03504972,111870.0,111840.0,0.04512362]
[1760597429858,0.02504972,111870.0,111860.0,0.2149772]
[1760597430109,0.02504972,111870.0,111860.0,0.03618228]
[1760597430343,0.02504972,111870.0,111860.0,0.14358573]
[1760597430616,0.02504972,111870.0,111860.0,0.22152345]
[1760597431061,0.20382865,111870.0,111860.0,0.10740345]
[1760597431285,0.20382865,111870.0,111860.0,0.22156345]
[1760597431745,0.20382865,111870.0,111860.0,0.20385012]
[1760597432202,0.20382865,111870.0,111860.0,0.08969012]
[1760597432447,0.20382865,111870.0,111860.0,0.20385012]
[1760597432683,0.97567705,111870.0,111860.0,0.08969012]
[1760597432906,0.99567705,111870.0,111860.0,0.08969012]
[1760597433139,0.99674338,111870.0,111860.0,0.08969012]
[1760597433362,0.99674338,111870.0,111840.0,0.08969012]
[1760597433363,0.17882294,111850.0,111840.0,0.08969012]
[1760597433574,0.17882294,111850.0,111840.0,0.20385012]
[1760597433786,0.17882294,111850.0,111840.0,0.08969012]
[1760597433787,0.61067134,111850.0,111840.0,0.08969012]
[1760597434033,0.96067134,111850.0,111840.0,0.08969012]
[1760597434265,0.17884288,111830.0,111820.0,0.00467539]
[1760597434484,0.17884288,111830.0,111820.0,0.11883539]
[1760597434720,0.17884288,111830.0,111820.0,0.00467539]
[1760597435016,0.17884288,111830.0,111820.0,0.11883539]
[1760597435259,0.17884288,111830.0,111820.0,0.10624905]
[1760597435475,0.61074097,111830.0,111820.0,0.09436551]
[1760597435702,0.52889257,111830.0,111820.0,0.09436551]
[1760597435936,0.52889257,111830.0,111820.0,0.08969012]
[1760597436155,0.51889257,111830.0,111820.0,0.08969012]
[1760597436604,0.51889257,111830.0,111820.0,0.20393012]
[1760597436839,0.95074097,111830.0,111820.0,0.11187188]
[1760597437077,0.95074097,111830.0,111820.0,0.08969012]
[1760597437078,1.08174097,111830.0,111820.0,0.08969012]
[1760597437316,0.17890687,111790.0,111780.0,0.09864185]
[1760597437596,0.18783497,111810.0,111780.0,0.2935745]
[1760597437597,0.17890661,111800.0,111780.0,0.2935745]
[1760597437818,0.17890661,111800.0,111790.0,0.08969012]
[1760597438035,0.18783497,111810.0,111790.0,0.11725834]
[1760597438277,0.18783497,111810.0,111800.0,0.01788908]
[1760597438574,0.18788465,111810.0,111800.0,0.1075792]
[1760597438880,0.18788465,111810.0,111800.0,0.2218192]
[1760597439096,0.53788465,111810.0,111800.0,0.08969012]
[1760597439316,4.968e-05,111810.0,111800.0,0.76364558]
[1760597439559,4.968e-05,111810.0,111800.0,0.97871873]
[1760597440001,4.968e-05,111810.0,111800.0,1.31871873]
[1760597440452,4.968e-05,111810.0,111800.0,0.65373228]
[1760597440667,4.968e-05,111810.0,111800.0,0.24916141]
[1760597441096,4.968e-05,111810.0,111800.0,0.21297913]
[1760597441322,4.968e-05,111810.0,111800.0,0.39187]
[1760597441783,4.968e-05,111810.0,111800.0,0.21297913]
[1760597442012,4.968e-05,111810.0,111800.0,0.39187]
[1760597442223,4.968e-05,111810.0,111800.0,0.21297913]
[1760597442431,4.968e-05,111810.0,111800.0,0.21301913]
[1760597442642,4.968e-05,111810.0,111800.0,0.39191]
[1760597443581,4.968e-05,111810.0,111800.0,1.09307873]
[1760597444026,4.968e-05,111810.0,111800.0,0.42809228]
[1760597444668,4.968e-05,111810.0,111800.0,0.24920141]
[1760597444881,0.00762544,111810.0,111800.0,0.42809228]
[1760597445091,0.00762544,111810.0,111800.0,0.21297913]
[1760597445301,0.00762544,111810.0,111800.0,0.39187]
[1760597445731,0.18650031,111810.0,111800.0,0.21297913]
[1760597447459,0.18650031,111810.0,111800.0,0.09865913]
[1760597447646,0.86148676,111810.0,111800.0,0.08969012]
[1760597447903,0.88057048,111810.0,111800.0,0.08969012]
[1760597448979,0.21558403,111810.0,111800.0,0.08969012]
[1760597449231,0.19650031,111810.0,111800.0,0.08969012]
[1760597449446,0.18650031,111810.0,111800.0,0.08969012]
[1760597449694,0.18650031,111810.0,111800.0,0.2218992]
[1760597449905,0.18650031,111810.0,111800.0,0.11009113]
[1760597450120,0.18650031,111810.0,111800.0,0.20401012]
[1760597450347,0.17890687,111790.0,111760.0,0.09864585]
[1760597450537,0.17890687,111790.0,111770.0,0.221864]
[1760597450793,0.17890687,111790.0,111770.0,0.08969012]
[1760597451005,0.18785221,111790.0,111780.0,0.11428]
[1760597451213,0.00582907,111780.0,111770.0,0.17893889]
[1760597451423,0.00582907,111780.0,111770.0,0.107584]
[1760597451639,0.00582907,111780.0,111770.0,0.221864]
[1760597451843,0.00582907,111780.0,111770.0,0.20397012]
[1760597452060,0.00582907,111780.0,111770.0,0.25033231]
[1760597452267,0.00582907,111780.0,111770.0,0.3149912]
[1760597452479,0.00582907,111780.0,111770.0,0.4302712]
[1760597452690,0.00582907,111780.0,111770.0,0.25133231]
[1760597452901,0.20383567,111780.0,111770.0,0.13805231]
[1760597453116,0.20383567,111780.0,111770.0,0.25233231]
[1760597453549,1.23302557,111780.0,111770.0,0.09169012]
[1760597453765,0.17892288,111780.0,111770.0,0.09169012]
[1760597453983,0.33312633,111780.0,111770.0,0.09169012]
[1760597454212,0.33312633,111780.0,111770.0,0.09069012]
[1760597454213,0.97390933,111780.0,111770.0,0.09069012]
[1760597454425,0.9905664,111780.0,111770.0,0.09069012]
[1760597454635,0.9905664,111780.0,111770.0,0.08969012]
[1760597454842,0.32557995,111780.0,111770.0,0.11665301]
[1760597455478,0.14665707,111780.0,111770.0,0.09875913]
[1760597455689,0.17892288,111780.0,111770.0,0.11665301]
[1760597455894,0.17892056,111790.0,111770.0,0.29559145]
[1760597456108,0.17892056,111790.0,111780.0,0.08969012]
[1760597456328,0.8705722,111790.0,111780.0,0.08969012]
[1760597456544,0.1789549,111760.0,111750.0,0.0717521]
[1760597456817,0.1789549,111760.0,111750.0,0.16144222]
[1760597457030,0.1789549,111760.0,111750.0,0.27580222]
[1760597457259,0.1789549,111760.0,111750.0,0.20401012]
[1760597457470,0.1789549,111760.0,111750.0,0.24370385]
[1760597457682,0.1789549,111760.0,111750.0,0.08969012]
[1760597457895,0.1789549,111760.0,111750.0,0.20450723]
[1760597457896,0.19562035,111760.0,111750.0,0.20450723]
[1760597458351,0.19562035,111760.0,111750.0,0.20550723]
[1760597458567,0.19562035,111760.0,111750.0,0.09218723]
[1760597458777,0.19562035,111760.0,111750.0,0.22244432]
[1760597458993,0.8606068,111760.0,111750.0,0.09018723]
[1760597459210,0.19562035,111760.0,111750.0,0.09018723]
[1760597459431,0.19562035,111760.0,111750.0,0.20454723]
[1760597460066,0.19562035,111760.0,111750.0,0.09018723]
[1760597460289,0.01666545,111760.0,111750.0,0.20454723]
[1760597460501,0.01666545,111770.0,111750.0,0.40626273]
[1760597460727,0.2045312,111780.0,111760.0,0.28654051]
[1760597460937,0.01666099,111780.0,111770.0,0.19683277]
[1760597461170,0.01666099,111780.0,111770.0,0.93361546]
[1760597461383,0.0005826,111790.0,111780.0,0.17892288]
[1760597461598,0.1794911,111790.0,111780.0,0.14588931]
[1760597461815,0.29615708,111790.0,111780.0,0.20417012]
[1760597462275,0.19615708,111790.0,111780.0,0.20417012]
[1760597462941,0.86114353,111790.0,111780.0,0.20417012]
[1760597463152,0.86114353,111790.0,111780.0,0.08969012]
[1760597463432,0.86114353,111790.0,111780.0,0.20417012]
[1760597463649,0.17892288,111780.0,111770.0,0.001]
[1760597463860,0.19558886,111780.0,111770.0,0.20417012]
[1760597464088,0.19558886,111780.0,111770.0,0.11010713]
[1760597464301,0.01666598,111780.0,111770.0,0.26862901]
[1760597464508,0.01666598,111780.0,111770.0,0.38310901]
[1760597464716,0.19558886,111780.0,111770.0,0.08969012]
[1760597465180,0.19558886,111780.0,111750.0,0.0949938]
[1760597465181,0.1789549,111760.0,111750.0,0.0949938]
[1760597465395,0.01666598,111760.0,111750.0,0.38155192]
[1760597465650,0.01666598,111760.0,111750.0,0.22741182]
[1760597465867,0.19562088,111760.0,111750.0,0.11293182]
[1760597466285,0.19562088,111760.0,111750.0,0.22741182]
[1760597466500,0.19562088,111760.0,111750.0,0.11293182]
[1760597466685,0.19562088,111760.0,111750.0,0.22741182]
[1760597467137,0.19562088,111760.0,111750.0,0.11293182]
[1760597467364,0.19562088,111760.0,111750.0,0.30979982]
[1760597467591,0.19562088,111760.0,111750.0,0.11293182]
[1760597467777,0.19562088,111760.0,111750.0,0.12708662]
[1760597468018,0.19562088,111760.0,111750.0,0.24152662]
[1760597468226,0.19562088,111760.0,111750.0,0.11293182]
[1760597468495,0.01666598,111760.0,111750.0,0.30925628]
[1760597468732,0.01666598,111760.0,111750.0,0.29190273]
[1760597469009,0.01666598,111760.0,111750.0,0.40634273]
[1760597469242,0.207099,111780.0,111750.0,0.29190273]
[1760597469518,0.17893923,111770.0,111760.0,0.10758561]
[1760597469771,0.19562608,111770.0,111760.0,0.08969012]
[1760597469986,0.26562608,111770.0,111760.0,0.08969012]
[1760597470787,0.26562608,111770.0,111760.0,0.20409012]
[1760597471242,0.26562608,111770.0,111760.0,0.08969012]
[1760597471874,0.26562608,111770.0,111750.0,0.00049711]
[1760597471875,0.1789549,111760.0,111750.0,0.00049711]
[1760597472089,0.1789549,111760.0,111750.0,0.09018723]
[1760597472090,0.19564175,111760.0,111750.0,0.09018723]
[1760597472520,0.19564175,111760.0,111750.0,0.22248432]
[1760597472727,0.19564175,111760.0,111750.0,0.09018723]
[1760597472929,0.20564175,111760.0,111750.0,0.20458723]
[1760597473604,0.8706282,111760.0,111750.0,0.09018723]
[1760597473814,0.88985818,111760.0,111750.0,0.20458723]
[1760597474034,0.88985818,111760.0,111750.0,0.00049711]
[1760597474252,0.91384117,111760.0,111750.0,0.00049711]
[1760597474469,1.25384117,111760.0,111750.0,0.00049711]
[1760597474890,1.28611243,111760.0,111750.0,0.00049711]
[1760597475106,1.28613848,111760.0,111750.0,0.00049711]
[1760597475336,1.33742223,111760.0,111750.0,0.00049711]
[1760597475754,1.30515097,111760.0,111750.0,0.00049711]
[1760597475982,3.36072362,111760.0,111750.0,0.00049711]
[1760597476242,0.66224943,111760.0,111750.0,0.00049711]
[1760597476498,0.61105191,111760.0,111750.0,0.00049711]
[1760597476711,0.578967,111760.0,111750.0,0.00049711]
[1760597476927,0.0600121,111760.0,111750.0,0.29390802]
[1760597477151,0.21589778,111760.0,111750.0,0.04828629]
[1760597477370,0.0610121,111760.0,111750.0,0.29390802]
[1760597477589,0.03594288,111760.0,111750.0,0.29390802]
[1760597477802,0.03594288,111760.0,111750.0,0.38359814]
[1760597478011,0.0167129,111760.0,111750.0,0.38355814]
[1760597478665,0.1956678,111760.0,111750.0,0.26915814]
[1760597478843,0.1956678,111760.0,111750.0,0.42887233]
[1760597479715,0.0167129,111760.0,111750.0,0.42887233]
[1760597479933,0.0167129,111760.0,111750.0,0.42883233]
[1760597480150,0.0167129,111760.0,111750.0,1.09381878]
[1760597480395,0.01922998,111780.0,111770.0,0.17893889]
[1760597480607,0.01673476,111780.0,111770.0,0.30441704]
[1760597480826,0.01673476,111780.0,111770.0,0.41889704]
[1760597482136,0.0005826,111790.0,111780.0,0.17892288]
[1760597482355,0.01731834,111790.0,111780.0,0.268613]
[1760597482796,0.01731792,111790.0,111780.0,0.383093]
[1760597483009,0.01731792,111790.0,111780.0,0.42906032]
[1760597484197,0.19622479,111790.0,111780.0,0.13569744]
[1760597484446,0.19622479,111790.0,111780.0,0.15358972]
[1760597484658,0.19622479,111790.0,111780.0,0.4469526]
[1760597484889,0.19622479,111790.0,111780.0,0.25013744]
[1760597485127,0.19622479,111790.0,111780.0,0.25009744]
[1760597485345,0.19622479,111790.0,111780.0,0.42902032]
[1760597485568,0.01731792,111790.0,111780.0,0.42902032]
[1760597485779,0.01731792,111790.0,111780.0,0.31462032]
[1760597486011,0.01731792,111790.0,111780.0,0.42902032]
[1760597486774,0.01731792,111790.0,111780.0,0.31462032]
[1760597487003,0.01731792,111790.0,111780.0,0.42902032]
[1760597487210,0.0005826,111790.0,111780.0,0.31462032]
[1760597487929,0.0005826,111790.0,111780.0,0.97960677]
[1760597488166,0.0005826,111790.0,111780.0,1.09396677]
[1760597488383,0.0005826,111790.0,111780.0,0.97960677]
[1760597488609,0.0005826,111790.0,111780.0,0.31462032]
[1760597488834,0.0005826,111790.0,111780.0,0.97960677]
[1760597489330,0.0005826,111790.0,111780.0,0.98160677]
[1760597489569,0.0005826,111790.0,111780.0,1.09492677]
[1760597489822,0.0005826,111790.0,111780.0,0.97960677]
[1760597490047,0.0005826,111790.0,111780.0,1.09596677]
[1760597490258,0.0005826,111790.0,111780.0,0.43098032]
[1760597490479,0.0005826,111790.0,111780.0,0.98160677]
[1760597491145,0.0005826,111790.0,111780.0,1.09592677]
[1760597492005,0.0005826,111790.0,111780.0,0.98160677]
[1760597492491,0.0005826,111790.0,111780.0,1.09592677]
[1760597492897,0.0005826,111790.0,111780.0,1.09588677]
[1760597493879,1e-08,111790.0,111780.0,0.8070826]
[1760597494151,1e-08,111790.0,111780.0,1.47206905]
[1760597495390,1e-08,111790.0,111780.0,1.47106905]
[1760597495648,1e-08,111790.0,111780.0,1.47006905]
[1760597495869,1e-08,111790.0,111780.0,1.47206905]
[1760597496144,1e-08,111790.0,111780.0,1.47406905]
[1760597496363,1e-08,111790.0,111780.0,1.41350905]
[1760597496589,1e-08,111790.0,111780.0,1.52774905]
[1760597497633,1e-08,111790.0,111780.0,0.7485226]
[1760597497856,1e-08,111790.0,111780.0,1.52774905]
[1760597498296,1e-08,111790.0,111780.0,1.52770905]
[1760597498509,1e-08,111790.0,111780.0,1.41350905]
[1760597498687,1e-08,111790.0,111780.0,1.52770905]
[1760597498895,6.683e-05,111790.0,111780.0,1.52770905]
[1760597499098,6.683e-05,111790.0,111780.0,1.41350905]
[1760597499324,6.683e-05,111790.0,111780.0,1.52770905]
[1760597499551,6.683e-05,111790.0,111780.0,1.2951326]
[1760597500313,6.683e-05,111790.0,111780.0,1.2950926]
[1760597500751,6.683e-05,111790.0,111780.0,0.6948026]
[1760597500924,6.683e-05,111790.0,111780.0,0.86519032]
[1760597501128,6.683e-05,111790.0,111780.0,0.75103032]
[1760597501493,6.683e-05,111790.0,111780.0,1.09103032]
[1760597501735,6.683e-05,111790.0,111780.0,1.20519032]
[1760597502259,6.683e-05,111790.0,111780.0,1.08703032]
[1760597502460,6.683e-05,111790.0,111780.0,1.20119032]
[1760597502667,6.683e-05,111790.0,111780.0,1.20319032]
[1760597502868,6.683e-05,111790.0,111780.0,1.08903032]
[1760597503064,6.683e-05,111790.0,111780.0,1.20315032]
[1760597504439,6.683e-05,111790.0,111780.0,1.08903032]
[1760597504604,6.683e-05,111790.0,111780.0,1.20315032]
[1760597504804,6.683e-05,111790.0,111780.0,1.20311032]
[1760597505891,6.683e-05,111790.0,111780.0,0.31662032]
[1760597506292,6.683e-05,111790.0,111780.0,0.43070032]
[1760597506482,6.683e-05,111790.0,111780.0,0.31662032]
[1760597506696,6.683e-05,111790.0,111780.0,0.43070032]
[1760597506936,6.683e-05,111790.0,111780.0,0.42870032]
[1760597507350,6.683e-05,111790.0,111780.0,0.42970032]
[1760597507805,6.683e-05,111790.0,111780.0,0.42870032]
[1760597508015,6.683e-05,111790.0,111780.0,0.31462032]
[1760597508246,6.683e-05,111790.0,111780.0,0.43066032]
[1760597508413,6.683e-05,111790.0,111780.0,0.42966032]
[1760597508817,6.683e-05,111790.0,111780.0,0.31662032]
[1760597509019,0.1789737,111790.0,111780.0,0.31662032]
[1760597509443,0.1789737,111790.0,111780.0,0.25173744]
[1760597509649,0.1789737,111790.0,111780.0,0.001]
[1760597510069,0.1789737,111790.0,111780.0,0.11508]
[1760597510509,0.6113837,111790.0,111780.0,0.001]
[1760597510757,0.6113837,111790.0,111780.0,0.11504]
[1760597510988,0.1789737,111790.0,111780.0,0.11504]
[1760597511245,0.1789737,111790.0,111780.0,0.14493775]
[1760597511450,0.1789737,111790.0,111780.0,0.14393775]
[1760597512262,0.17892288,111780.0,111770.0,0.02289388]
[1760597512473,0.17892288,111780.0,111770.0,0.226624]
[1760597512711,0.17892288,111780.0,111770.0,0.20873012]
[1760597512928,0.17892288,111780.0,111770.0,0.09469012]
[1760597513127,0.17892288,111780.0,111770.0,0.40552289]
[1760597513347,0.17892288,111780.0,111770.0,0.44697021]
[1760597513865,0.1789737,111790.0,111770.0,0.44697021]
[1760597514152,6.683e-05,111790.0,111780.0,0.268613]
[1760597514712,0.1789737,111790.0,111780.0,0.268613]
[1760597514938,0.1789737,111790.0,111780.0,0.382613]
[1760597515171,0.1789737,111790.0,111780.0,0.27145846]
[1760597515626,0.1789737,111790.0,111780.0,0.15745846]
[1760597515856,0.1789737,111790.0,111780.0,0.2215824]
[1760597516090,0.1789737,111790.0,111780.0,0.20369012]
[1760597516330,6.683e-05,111790.0,111780.0,0.382613]
[1760597516560,6.683e-05,111790.0,111780.0,0.382573]
[1760597516822,6.683e-05,111790.0,111780.0,0.268613]
[1760597517039,6.683e-05,111790.0,111780.0,0.90347919]
[1760597517456,6.683e-05,111790.0,111780.0,0.47106919]
[1760597518380,0.1789737,111790.0,111780.0,0.08969012]
[1760597519081,0.1789737,111790.0,111780.0,0.20369012]
[1760597519082,0.6113837,111790.0,111780.0,0.20369012]
[1760597519314,0.6113837,111790.0,111780.0,0.114]
[1760597519536,0.6113837,111790.0,111770.0,0.005]
[1760597519537,0.17892288,111780.0,111770.0,0.005]
[1760597519766,0.17892288,111780.0,111770.0,0.09469012]
[1760597519996,0.17892288,111780.0,111770.0,0.23694859]
[1760597520430,0.17892288,111780.0,111770.0,0.12294859]
[1760597520726,0.17892288,111780.0,111770.0,0.43378136]
[1760597520957,0.17892288,111780.0,111770.0,0.41588748]
[1760597521422,0.17892288,111780.0,111770.0,0.41584748]
[1760597521661,0.17892288,111780.0,111770.0,0.12294859]
[1760597521885,0.17892288,111780.0,111770.0,0.25480247]
[1760597522115,0.17892288,111780.0,111770.0,0.23690859]
[1760597522876,0.52892288,111780.0,111770.0,0.005]
[1760597523102,0.98057218,111780.0,111770.0,0.11896]
[1760597523319,0.52892288,111780.0,111770.0,0.11896]
[1760597523536,0.51892288,111780.0,111770.0,0.40548289]
[1760597523755,0.51892288,111780.0,111770.0,0.20865012]
[1760597524150,0.51892288,111780.0,111770.0,0.2474106]
[1760597524397,0.17892288,111780.0,111770.0,0.42634949]
[1760597524609,0.17892288,111780.0,111770.0,0.31238949]
[1760597524828,0.17892288,111780.0,111770.0,0.42634949]
[1760597525249,0.17892288,111780.0,111770.0,0.1334506]
[1760597525485,0.17892288,111780.0,111770.0,0.2473706]
[1760597525723,0.17892288,111780.0,111770.0,0.20861012]
[1760597525981,0.17892288,111780.0,111770.0,0.005]
[1760597525982,0.96133288,111780.0,111770.0,0.005]
[1760597526199,0.99726475,111780.0,111770.0,0.005]
[1760597527097,0.56485475,111780.0,111770.0,0.005]
[1760597527310,0.54815561,111780.0,111770.0,0.005]
[1760597528573,0.98056561,111780.0,111770.0,0.005]
[1760597528790,1.08695047,111780.0,111770.0,0.005]
[1760597528995,0.99726839,111780.0,111770.0,0.005]
[1760597529653,3.92085161,111780.0,111770.0,0.005]
[1760597530336,3.95293652,111780.0,111770.0,0.005]
[1760597530795,3.92185161,111780.0,111770.0,0.005]
[1760597531218,3.95393652,111780.0,111770.0,0.005]
[1760597531459,3.92185161,111780.0,111770.0,0.005]
[1760597531935,3.48944161,111780.0,111770.0,0.005]
[1760597532116,1.02233761,111780.0,111770.0,0.005]
[1760597532854,0.58992761,111780.0,111770.0,0.005]
[1760597533086,0.58992761,111780.0,111770.0,0.27362901]
[1760597533087,0.22585839,111780.0,111770.0,0.27362901]
[1760597533347,0.001,111780.0,111770.0,0.33027403]
[1760597533606,0.17892288,111780.0,111770.0,0.33027403]
[1760597533836,0.17892288,111780.0,111770.0,0.44415403]
[1760597534063,0.17892288,111780.0,111770.0,0.26521514]
[1760597534530,0.17892288,111780.0,111770.0,0.15133514]
[1760597534761,0.17892288,111780.0,111770.0,0.20853012]
[1760597535446,1.08133288,111780.0,111770.0,0.005]
[1760597535677,0.17892288,111780.0,111770.0,0.09469012]
[1760597535903,0.17892288,111780.0,111770.0,0.226464]
[1760597536131,0.17892288,111780.0,111770.0,0.20857012]
[1760597536367,0.17892288,111780.0,111770.0,0.09469012]
[1760597538162,0.17892288,111780.0,111770.0,0.31238134]
[1760597538363,0.17892288,111780.0,111770.0,0.13344245]
[1760597538575,0.17892288,111780.0,111770.0,0.24728245]
[1760597539641,0.17892288,111780.0,111770.0,0.13344245]
[1760597540140,0.17892288,111780.0,111770.0,0.24728245]
[1760597541662,0.17892288,111780.0,111770.0,0.13344245]
[1760597541894,0.9880812,111780.0,111770.0,0.005]
[1760597542132,3.93093515,111780.0,111770.0,0.005]
[1760597542555,3.96302006,111780.0,111770.0,0.005]
[1760597543217,0.59901115,111780.0,111770.0,0.005]
[1760597543444,0.57901115,111780.0,111770.0,0.09469012]
[1760597543671,0.55494193,111780.0,111770.0,0.09469012]
[1760597544100,0.55494081,111780.0,111770.0,0.13343447]
[1760597544312,0.57901003,111780.0,111770.0,0.13343447]
[1760597544532,0.57901003,111780.0,111770.0,0.24723447]
[1760597544779,0.57901003,111780.0,111770.0,0.13343447]
[1760597544998,0.57901003,111780.0,111770.0,0.24723447]
[1760597545659,0.23901003,111780.0,111770.0,0.24723447]
[1760597545870,0.22226283,111780.0,111770.0,0.13343447]
[1760597546106,0.19819361,111780.0,111770.0,0.24719447]
[1760597546527,0.19819361,111780.0,111770.0,0.13343447]
[1760597546737,0.19819361,111780.0,111770.0,0.24719447]
[1760597548047,0.65467283,111780.0,111770.0,0.13343447]
[1760597548234,0.67143399,111780.0,111770.0,0.09469012]
[1760597548716,1.02143399,111780.0,111770.0,0.005]
[1760597548949,1.02944968,111780.0,111770.0,0.005]
[1760597549171,1.05359195,111780.0,111770.0,0.005]
[1760597549383,0.61118515,111780.0,111770.0,0.005]
[1760597549801,0.57910024,111780.0,111770.0,0.005]
[1760597550039,1.01151024,111780.0,111770.0,0.005]
[1760597550220,1.02944968,111780.0,111770.0,0.005]
[1760597550450,3.92896368,111780.0,111770.0,0.005]
[1760597550858,3.97732012,111780.0,111770.0,0.005]
[1760597551065,3.94523521,111780.0,111770.0,0.005]
[1760597551689,3.94623521,111780.0,111770.0,0.005]
[1760597552127,3.94523521,111780.0,111770.0,0.005]
[1760597552332,3.94623521,111780.0,111770.0,0.005]
[1760597554292,3.9784336,111780.0,111770.0,0.005]
[1760597555814,1.03056316,111780.0,111770.0,0.005]
[1760597556030,0.62230165,111780.0,111770.0,0.005]
[1760597556248,0.62230179,111780.0,111770.0,0.005]
[1760597556469,0.5801034,111780.0,111770.0,0.09469012]
[1760597556679,0.58010938,111780.0,111770.0,0.09469012]
[1760597556912,0.56334224,111780.0,111770.0,0.20837012]
[1760597557093,0.56334224,111780.0,111770.0,0.24710214]
[1760597557336,0.56334224,111780.0,111770.0,0.31236103]
[1760597557337,0.01927073,111780.0,111770.0,0.31236103]
[1760597557539,0.01927073,111780.0,111770.0,0.42604103]
[1760597558172,0.19819361,111780.0,111770.0,0.24710214]
[1760597558386,0.17892288,111780.0,111770.0,0.24710214]
[1760597559089,0.17898659,111780.0,111770.0,0.20837012]
[1760597561603,0.17898659,111780.0,111770.0,0.20833012]